Cogmind - Beta 10.1 @@@ ROGUE MODE // 2020.09.30 @ 17:36:40 Player: Cracklepappy Result: Destroyed self with Rocket Launcher Performance ------------- Evolutions (0) 0 Regions Visited (2) 400 Robots Destroyed (50) 250 Value Destroyed (619) 619 Prototype IDs (3) 60 Alien Tech Used (0) 0 Bonus (0) 0 TOTAL SCORE: 1329 Bonus ------- None Cogmind --------- Core Integrity 0/250 Matter 232/300 Energy 100/100 System Corruption 0% Temperature Cool (0) Movement Core (900) Ox17 Location -10/Mines Parts ------- > --- POWER (1) -------- (None) > --- PROPULSION (2) --- Wheel > --- UTILITY (2) ------ Large Storage Unit High-capacity Storage Unit > --- WEAPON (2) ------- Rocket Launcher > --- INVENTORY (18) --- Improved Ion Engine Light Treads Light Treads Wheel Medium Storage Unit Medium Storage Unit Medium Storage Unit Large Storage Unit Large Matter Pod (150) Heavy Assault Rifle Heavy Assault Rifle Heavy Assault Rifle Light Cannon Rocket Launcher Maul Ripper Peak State ------------ > --- POWER ------------ Improved Ion Engine > --- PROPULSION ------- Light Treads Wheel > --- UTILITY ---------- Large Storage Unit High-capacity Storage Unit > --- WEAPON ----------- Heavy Assault Rifle Heavy Assault Rifle > --- INVENTORY -------- Improved Ion Engine Improved Ion Engine Light Treads Light Treads Wheel Wheel Medium Storage Unit Medium Storage Unit Medium Storage Unit Medium Storage Unit Medium Storage Unit Large Storage Unit Propulsion Shielding Assault Rifle Light Cannon Light Cannon Grenade Launcher Maul [Rating: 12] Favorites ----------- Power Improved Ion Engine Engine Improved Ion Engine Propulsion Wheel Treads Light Treads Wheel Wheel Utility High-capacity Storage Unit Storage High-capacity Storage Unit Weapon Heavy Assault Rifle Ballistic Gun Heavy Assault Rifle Launcher Rocket Launcher Build | -11 -10 -10 ------- Run | Scr Mat Min Slots Evolved . | . . . Power . | . . . Propulsion . | . . . Utility . | . . . Weapon . | . . . Parts Attached 27 | 7 15 5 Power 3 | 1 1 1 Engine 3 | 1 1 1 Core . | . . . Reactor . | . . . Propulsion 5 | 2 2 1 Treads 2 | 1 1 . Leg . | . . . Wheel 3 | 1 1 1 Hover . | . . . Flight . | . . . Utility 6 | 2 4 . Device . | . . . Storage 6 | 2 4 . Processor . | . . . Hackware . | . . . Protection . | . . . Artifact . | . . . Weapon 13 | 2 8 3 Energy Gun . | . . . Energy Cannon . | . . . Ballistic Gun 9 | 2 6 1 Ballistic Cannon . | . . . Launcher 4 | . 2 2 Special Weapon . | . . . Impact Weapon . | . . . Slashing Weapon . | . . . Piercing Weapon . | . . . Special Melee Weapon . | . . . Unidentified Prototypes . | . . . Parts Lost 6 | . 1 5 Power 2 | . . 2 Propulsion 3 | . 1 2 Utility . | . . . Weapon 1 | . . 1 Highest Loss Streak 3 | . 1 3 Average Slot Usage (%) 99 | . 100 99 Engine 13 | . 14 13 Treads 13 | . 14 13 Wheel 13 | . 14 13 Storage 28 | . 28 28 Ballistic Gun 27 | . 27 27 Naked Turns . | . . . Heaviest Build 61 | 16 61 61 Greatest Support 20 | 10 20 10 Greatest Overweight (x) 6 | 1 6 6 Average Overweight (x) 4 | . 4 6 Largest Inventory Capacity 18 | 8 18 18 Average Capacity 16 | 6 16 18 Most Carried 18 | 8 18 18 Average Carried 16 | 4 15 17 Final Capacity 18 | 8 18 18 Final Carried 18 | 8 18 16 Class Distribution -------------------- 100% | Mutant Dominant Class ---------------- Mutant | -10/Materials Mutant | -10/Mines Resources | -11 -10 -10 ----------- Run | Scr Mat Min Matter Collected 1086 | 302 346 438 Remotely . | . . . Salvage Created 1050 | 168 605 277 Parts 83 | 12 44 27 Haulers Intercepted 2 | . 2 . Recyclers Shooed 4 | 1 2 1 Parts Field Recycled . | . . . Retrieved Matter . | . . . Parts Self-Destructed . | . . . Prevented . | . . . Kills | -11 -10 -10 ------- Run | Scr Mat Min Combat Hostiles Destroyed 34 | . 14 20 Guns 15 | . 10 5 AOE 19 | . 4 15 Classes Destroyed 8 | 2 5 1 Worker 3 | . 1 2 Tunneler 6 | 4 . 2 Hauler 2 | . 2 . Recycler 3 | 1 1 1 Watcher 2 | . 2 . Swarmer 10 | . 5 5 Grunt 11 | . 9 2 Assembled 13 | . . 13 Best Kill Streak 13 | 3 9 13 Combat Bots Only 13 | . 5 13 Max Kills in Single Turn 5 | 1 2 5 Gunslinging . | . . . Exploded 5 | . 2 5 Melee . | . . . Uniques/NPCs Destroyed . | . . . Combat | -11 -10 -10 -------- Run | Scr Mat Min Damage Taken 1222 | . 525 697 Core 256 | . 120 136 Absorbed by Shields . | . . . Core Remaining (%) 100 | 100 . . Volleys Fired 85 | 8 47 30 Largest 2 | 2 2 2 Hottest 50 | 40 50 46 Shots Fired 157 | 16 93 48 Gun 141 | 16 89 36 Cannon . | . . . Launcher 16 | . 4 12 Special . | . . . Kinetic 141 | 16 89 36 Thermal . | . . . Explosive 16 | . 4 12 Electromagnetic . | . . . Robot Hit Streak 18 | 5 14 18 Robot Miss Streak 4 | 1 4 3 Penetration Max . | . . . Secondary Targets 1 | . 1 . Max Gunslinging Chain 1 | . 1 . Shots Hit Robots 102 | 11 63 28 Core Hits 77 | 7 36 34 Critical Hits . | . . . Critical Kills . | . . . Critical Parts Destroyed . | . . . Melee Attacks . | . . . Impact . | . . . Slashing . | . . . Piercing . | . . . Sneak Attacks . | . . . Combat Hostiles . | . . . Follow-up Attacks . | . . . Damage Inflicted 2897 | 116 967 1814 Guns 1097 | 116 653 328 Cannons . | . . . Explosions 1782 | . 310 1472 Melee . | . . . Ramming 18 | . 4 14 Kinetic 1097 | 116 653 328 Thermal . | . . . Explosive 1782 | . 310 1472 Electromagnetic . | . . . Impact . | . . . Slashing . | . . . Piercing . | . . . Highest Corruption . | . . . Average Corruption . | . . . Corruption Purged . | . . . Overload Shots . | . . . Overflow Damage 117 | . 3 114 Projectiles . | . . . Explosions 117 | . 3 114 Melee . | . . . Knockbacks . | . . . Impact . | . . . Kinetic . | . . . Secondary . | . . . Self-Inflicted Damage 346 | . 60 286 Shots 11 | . 3 8 Rammed 4 | . 1 3 Targets Rammed 4 | . 1 3 Kicked . | . . . Crushed . | . . . Highest Temperature 22 | . 22 11 Average Temperature 4 | . 4 4 Received Heat Transfer 218 | . 141 77 Siege Activations . | . . . Robots Corrupted . | . . . Combat Hostiles . | . . . Parts Fried . | . . . Impact Corruptions . | . . . Robots Melted . | . . . Combat Hostiles . | . . . Parts Melted . | . . . Heat Transferred . | . . . Parts Sabotaged . | . . . Parts Stolen . | . . . Parts Stripped . | . . . Power Chain Reactions . | . . . Missiles Intercepted . | . . . Alert | -11 -10 -10 ------- Run | Scr Mat Min Peak Influence 349 | 25 349 140 Initial 77 | . 16 77 Average 132 | 10 193 75 Maximum Alert Level 1 | . 1 . Low Security (%) 81 | 100 64 100 Level 1 18 | . 35 . Level 2 . | . . . Level 3 . | . . . Level 4 . | . . . Level 5 . | . . . High Security . | . . . Max Security . | . . . Squads Dispatched 5 | . 5 . Investigation 3 | . 3 . Extermination . | . . . Reinforcement 2 | . 2 . Assault . | . . . Garrison . | . . . Intercept . | . . . Construction Impeded . | . . . Haulers Reinforced . | . . . Stealth | -11 -10 -10 --------- Run | Scr Mat Min Distress Signals 4 | . 4 . Communications Jammed . | . . . Distress Signals . | . . . Times Spotted 47 | . 25 22 Peak Tracking Total 10 | . 6 10 Tactical Retreats 3 | . . 3 Traps | -11 -10 -10 ------- Run | Scr Mat Min Traps Triggered 4 | . 4 . Indirectly . | . . . Trap Hack Attempts . | . . . Triggered . | . . . Disarmed . | . . . Reprogrammed . | . . . Reused . | . . . Traps Extracted . | . . . Installed . | . . . Triggered . | . . . Machines | -11 -10 -10 ---------- Run | Scr Mat Min Machines Disabled 2 | . 1 1 Max in Single Turn 1 | . 1 1 Machines Sabotaged . | . . . Garrisons Compromised . | . . . Overloaded Fab Kills . | . . . Fab Network Shutdowns . | . . . Hacking | -11 -10 -10 --------- Run | Scr Mat Min Machines Accessed 8 | . 8 . Terminals 6 | . 6 . Fabricators . | . . . Repair Stations . | . . . Recycling Units 2 | . 2 . Scanalyzers . | . . . Garrison Access . | . . . Total Hacks 27 | . 27 . Successful 7 | . 7 . Failed 20 | . 20 . Catastrophic 2 | . 2 . Database Lockouts . | . . . Manual 13 | . 13 . Terminals 22 | . 22 . Fabricators . | . . . Repair Stations . | . . . Recycling Units 5 | . 5 . Scanalyzers . | . . . Garrison Access . | . . . Terminal Hacks 4 | . 4 . Part Schematic 1 | . 1 . Prototype ID Bank 1 | . 1 . Recall Investigation 1 | . 1 . Hauler Manifests 1 | . 1 . Fabricator Hacks . | . . . Repair Station Hacks . | . . . Recycling Unit Hacks . | . . . Scanalyzer . | . . . Garrison Access Hacks . | . . . Unauthorized Hacks 3 | . 3 . Terminals 1 | . 1 . Assimilate 1 | . 1 . Fabricators . | . . . Repair Stations . | . . . Recycling Units 2 | . 2 . Tunnel 2 | . 2 . Scanalyzers . | . . . Garrison Access . | . . . Data Cores Recovered . | . . . Used . | . . . Hacking Detections 7 | . 7 . Full Trace Events 1 | . 1 . Feedback Events . | . . . Feedback Blocked . | . . . Robot Schematics Acquired . | . . . Robots Built . | . . . Matter . | . . . Time . | . . . Total Robot Build Rating . | . . . Part Schematics Acquired 1 | . 1 . Parts Built . | . . . Matter . | . . . Time . | . . . Total Part Build Rating . | . . . Parts Repaired . | . . . Time . | . . . Parts Recycled . | . . . Recycled Matter . | . . . Retrieved Matter . | . . . Retrieved Components . | . . . Parts Scanalyzed . | . . . Part Schematics Acquired . | . . . Parts Damaged . | . . . Bothacking | -11 -10 -10 ------------ Run | Scr Mat Min Used RIF Installer . | . . . Robots Hacked . | . . . Non-combat . | . . . Combat . | . . . Robot Hacks Applied . | . . . Relay Couplers Released . | . . . Robots Rewired . | . . . Allies Hacked . | . . . Hacks Repelled . | . . . Allies | -11 -10 -10 -------- Run | Scr Mat Min Total Allies 1 | . 1 . Largest Group 1 | . 1 1 Highest-Rated Group 10 | . 10 10 Highest-Rated Ally 10 | . 10 10 Total Orders . | . . . Ally Attacks . | . . . Total Damage . | . . . Kills . | . . . Allies Corrupted . | . . . Allies Melted . | . . . Intel | -11 -10 -10 ------- Run | Scr Mat Min Robot Analysis Total . | . . . Derelict Logs Recovered 1 | . . 1 Drone Launches . | . . . Drone Recoveries . | . . . Exploration | -11 -10 -10 ------------- Run | Scr Mat Min Turns Passed 1841 | 84 946 811 Spaces Moved 1034 | 48 498 488 Core 1 | 1 . . Treads 46 | . 46 . Legs . | . . . Wheels 987 | 47 452 488 Hover . | . . . Flight . | . . . Fastest Speed 50 | 50 90 140 Average Speed 132 | 86 130 140 Slowest Speed 200 | 90 200 140 Overloaded Moves . | . . . Propulsion Burnouts . | . . . Robots Hopped . | . . . Cave-ins Triggered . | . . . Exploration Rate (%) 65 | 4 98 93 Regions Visited 2 Branch Regions 1 Pre-discovered Areas 3 | . 2 1 Known Exits Taken . | . . . Unknown Exits Taken 2 | 1 1 . Scrap Searched 2 | . . 2 Spaces Dug . | . . . Terrain Destroyed 152 | . 25 127 Melee . | . . . Projectile . | . . . AOE 152 | . 25 127 Terrain Rammed . | . . . Walls Destroyed . | . . . Machines Disabled . | . . . Actions | -11 -10 -10 --------- Run | Scr Mat Min Total 1360 | 73 719 568 Wait 157 | . 123 34 Move 1032 | 47 497 488 Hop . | . . . Pick Up 33 | 10 19 4 Fast Attach 6 | 6 . . Attach 5 | 1 2 2 Detach . | . . . Swap 16 | . 13 3 Drop 22 | 1 17 4 Fire 85 | 8 47 30 Melee . | . . . Ram 3 | . 1 2 Kick . | . . . Crush 1 | . . 1 Escape Stasis . | . . . Rewire . | . . . Trap . | . . . Miscellaneous . | . . . Route ------- -11/Scrapyard -10/Materials (discovered 4 exits: [*Mat x3] / [*Min]) -10/Mines (discovered 2 exits: [*Mat x2]) History --------- Turn | Location | Event 11 | -11/Scrapyard | Discovered new exit (range 16) 85 | -11/Scrapyard | Entered Materials 304 | -10/Materials | Build established: Mutant 379 | -10/Materials | Discovered new exit (range 11) 445 | -10/Materials | Discovered new exit (range 14) 621 | -10/Materials | Discovered new exit (range 16) 725 | -10/Materials | Discovered new exit (range 8) 1031 | -10/Materials | Entered Mines 1031 | -10/Mines | Accompanied by 1 ally 1048 | -10/Mines | Learned location of Zion (-6) 1092 | -10/Mines | Received a Rocket Launcher from a helpful Derelict 1224 | -10/Mines | A weapon hastily lodged in a ceiling crevice suddenly fell to the ground 1313 | -10/Mines | Core integrity fell below 50% 1337 | -10/Mines | Discovered new exit (range 4) 1428 | -10/Mines | Discovered new exit (range 6) 1801 | -10/Mines | Assembled infested the area 1838 | -10/Mines | Core integrity fell below 20% 1842 | -10/Mines | Destroyed self with Rocket Launcher Last Messages --------------- 01832_ Destroyed Imp. Ion Engine. 01832_ as-48655 destroyed. 01832_ as-20164 destroyed. 01832_ as-90257 destroyed. 01832_ Destroyed Asb. Hover Unit. 01832_ as-16821 destroyed. 01833_ Lgt. Treads destroyed. 01834_ Destroyed Asb. Hover Unit. 01834_ as-11717 destroyed. 01836_ as-73650 destroyed. 01836_ as-25752 destroyed. 01836_ as-59459 destroyed. 01836_ Destroyed Asb. Hover Unit. 01836_ as-28019 destroyed. 01838_ Destroyed Asb. Hover Unit. 01838_ Destroyed Asb. F-torch. 01838_ as-26199 destroyed. 01840_ as-32894 destroyed. 01841_ Hvy. Assault Rifle destroyed. 01842_ as-06029 destroyed. Map ----- +----------------------------------------------------+ | | | | | | | | | ?????????????????????????????????????????????????? | | ?????????????????????????????????????????????????? | | ???????????????????????????###########???????????? | | ???????????????????????????# #???????????? | | ???????????######??????????# ! #???????????? | | ???????????# ??????????# !!! #???????????? | | ???????????# """#??????# ! ! #???????????? | | ###????????# """#??????# #???????????? | | # #???????# """#??????# #???????????? | | #??????# #??????# #?????#####?? | | #?????# """#??????# #?????# #?? | | ?????# """#??????######## ##?????# #?? | | ????# ""=#######???????# #??????# #?? | | ?? ????# [%=% #???????#!#??????# ##?? | | ??? ???# *![ ##### #???#####%###????# #??? | | ????# #??# #???# #??## # !*= #????# #??? | | ?????# ######## ###### #?### "" #?#### #??? | | ?????# ### ## # ### # "" ### # #??? | | ????## # # "" ## #??? | | ????# # ## ## #??? | | ????# ### ### # ##### ! #??? | | ????## ### @ # #???## ##??? | | ?????### # ### ## #????## ##### | | ???????## # # ##?????## # | | ????????## ### # #???????## ### # | | ?????????# % # ##?# ###????????###?# # | | ?????????# #?##?## ##?????????????# # | | ?????????# # # ###????### ###????????????# # | | ?????????## #?##???????# # #????????????# # | | ??????????### ##??????????# # # #????????????# # | | ????????????#####???????????## ##???????????# # | | ???????????????????????????## !##??????????# # | | ???????????????????????????# | *##?????????# # | | ????????????????????######## * #?????????# # | | ???################## !% #?????????# # | | ???# !%=# #??######## # | | ???# ####### # ## !##??# # | | ??## #################????## ###?###???# ######## | | ?## #############????????## #?????????# #?###### | | ## #?????????# #????????## ### | | | ########## #####?????# #?????#### | | [ !##????????# #?????# #?????# | | !###?????????##### ####### ####??# ## ### | | ##???????????????# #??# ## #?## ## | | ##????????????????########### #??# ## ##?##### | | ###??????####?????????????????# #### ##????? | +----------------------------------------------------+ Best States ------------- Heat Dissipation 25 Energy Generation 12 Energy Capacity 265 Matter Stores 300 Matter Capacity 300 Sight Range 16 Terrain Scan Density 10 Evasion (%) 44 Recoil Reduction 1 Item Schematics ----------------- Hcp. Storage Unit | -10/Materials | Hacked Robot Schematics ------------------ None Fabricated ------------ Nothing Alien Tech Used ----------------- None Achievements -------------- None Challenges ------------ None Game ------ Seed LaserEnhancedSheargun Manual? 0 Play Time 00:15:05 Cumulative 190.1 hours Start 2020.09.30 @ 17:10:10 End 2020.09.30 @ 17:36:40 Sessions 1 Manual Loads 0 Difficulty Rogue Special Mode None Game No. 217 Rogue 217 Adventurer 0 Explorer 0 Win Type - Total 2 Types 2/0/0/0/0/0/0/0/0 Lore% 61 Gallery% 74 Achievement% 56 Wizard Run 0 Options --------- ASCII 0 Keyboard 0 Movement Numpad Keybinds 0 Fullscreen 2 Font 24/Smallcaps Map View 76x50 Tactical HUD 1 Map Filters NONE Filters NONE Steam 1 RUN: 09fe5c6f-9c92-42da-a518-1e71f797ccc1